[Event "Late-Titled-Tuesday-Blitz-April-30-2024"]
[Site "Chess.com"]
[Date "2024.04.30"]
[Round "9"]
[White "Mops_2004"]
[Black "Bykov_Egor"]
[Result "0-1"]
[WhiteElo "2757"]
[BlackElo "2612"]
[TimeControl "180+1"]
[EndTime "15:41:49 PDT"]
[Termination "Bykov_Egor won by resignation"]

1. e4 {[%clk 0:03:00.9]} 1... c5 {[%clk 0:02:57.1]} 2. Nf3 {[%clk 0:03:00.8]}
2... e6 {[%clk 0:02:57]} 3. c4 {[%clk 0:03:00.5]} 3... Nc6 {[%clk 0:02:55.4]} 4.
d4 {[%clk 0:03:00.7]} 4... cxd4 {[%clk 0:02:53.6]} 5. Nxd4 {[%clk 0:03:01.6]}
5... Nf6 {[%clk 0:02:43.9]} 6. Nc3 {[%clk 0:03:01.6]} 6... Bb4 {[%clk
0:02:43.4]} 7. Nxc6 {[%clk 0:03:01.7]} 7... bxc6 {[%clk 0:02:13.4]} 8. Bd3
{[%clk 0:03:00.7]} 8... d6 {[%clk 0:02:04.4]} 9. O-O {[%clk 0:02:57.6]} 9... e5
{[%clk 0:01:56.4]} 10. Na4 {[%clk 0:02:54.7]} 10... O-O {[%clk 0:01:47.7]} 11.
a3 {[%clk 0:02:54.7]} 11... Ba5 {[%clk 0:01:47.8]} 12. b4 {[%clk 0:02:54.5]}
12... Bc7 {[%clk 0:01:47.8]} 13. Re1 {[%clk 0:02:51.6]} 13... Re8 {[%clk
0:01:41.4]} 14. h3 {[%clk 0:02:38.5]} 14... a5 {[%clk 0:00:56.9]} 15. b5 {[%clk
0:02:34.9]} 15... cxb5 {[%clk 0:00:54.1]} 16. cxb5 {[%clk 0:02:35.8]} 16... d5
{[%clk 0:00:52.7]} 17. exd5 {[%clk 0:02:35.9]} 17... Qxd5 {[%clk 0:00:51.8]} 18.
Nc3 {[%clk 0:02:19.9]} 18... Qd4 {[%clk 0:00:41.9]} 19. Qc2 {[%clk 0:02:18.9]}
19... Bb7 {[%clk 0:00:41.2]} 20. Bg5 {[%clk 0:02:14.6]} 20... e4 {[%clk
0:00:26.3]} 21. Bf1 {[%clk 0:02:13.8]} 21... Rac8 {[%clk 0:00:23]} 22. Qd2
{[%clk 0:01:56.3]} 22... Qe5 {[%clk 0:00:18.1]} 23. g3 {[%clk 0:01:56.7]} 23...
Bb6 {[%clk 0:00:16.7]} 24. Rac1 {[%clk 0:01:52.7]} 24... Qxg3+ {[%clk
0:00:16.2]} 25. Bg2 {[%clk 0:01:51.6]} 25... Qxg2+ {[%clk 0:00:14.6]} 0-1

[Event "Late-Titled-Tuesday-Blitz-April-30-2024"]
[Site "Chess.com"]
[Date "2024.04.30"]
[Round "9"]
[White "duone"]
[Black "Darkbluelord"]
[Result "1-0"]
[WhiteElo "2416"]
[BlackElo "2197"]
[TimeControl "180+1"]
[EndTime "15:41:49 PDT"]
[Termination "duone won by resignation"]

1. e4 {[%clk 0:03:00.9]} 1... c5 {[%clk 0:02:59.5]} 2. Nf3 {[%clk 0:02:59.5]}
2... d6 {[%clk 0:02:59.3]} 3. d4 {[%clk 0:02:59.2]} 3... cxd4 {[%clk 0:03:00.2]}
4. Nxd4 {[%clk 0:02:59.5]} 4... Nf6 {[%clk 0:03:00.8]} 5. Nc3 {[%clk 0:02:59.3]}
5... g6 {[%clk 0:03:01.3]} 6. Be3 {[%clk 0:02:58.4]} 6... Bg7 {[%clk 0:03:01.7]}
7. f3 {[%clk 0:02:58.9]} 7... O-O {[%clk 0:03:01.7]} 8. Qd2 {[%clk 0:02:58.6]}
8... Nc6 {[%clk 0:03:01.8]} 9. O-O-O {[%clk 0:02:58.6]} 9... d5 {[%clk
0:03:00.8]} 10. Qe1 {[%clk 0:02:58.6]} 10... Rb8 {[%clk 0:03:00]} 11. Nxc6
{[%clk 0:02:51.4]} 11... bxc6 {[%clk 0:02:59.3]} 12. Bc4 {[%clk 0:02:51.4]}
12... Be6 {[%clk 0:02:45.2]} 13. Bb3 {[%clk 0:02:42.7]} 13... Qc7 {[%clk
0:02:23.9]} 14. g3 {[%clk 0:02:40.4]} 14... Rfc8 {[%clk 0:02:15.8]} 15. Bf4
{[%clk 0:02:39.2]} 15... Qa5 {[%clk 0:02:10.4]} 16. Bxb8 {[%clk 0:02:38.3]}
16... Rxb8 {[%clk 0:02:10.8]} 17. Nxd5 {[%clk 0:02:32.8]} 17... Qxe1 {[%clk
0:01:51.5]} 18. Nxf6+ {[%clk 0:02:31.5]} 18... Bxf6 {[%clk 0:01:51.5]} 19. Rhxe1
{[%clk 0:02:31.5]} 19... Bxb3 {[%clk 0:01:42.4]} 20. axb3 {[%clk 0:02:32.4]}
20... e6 {[%clk 0:01:26.1]} 21. e5 {[%clk 0:02:32.6]} 21... Bd8 {[%clk
0:01:18.8]} 22. f4 {[%clk 0:02:32.5]} 22... Bb6 {[%clk 0:01:18.8]} 23. Rd6
{[%clk 0:02:32.4]} 23... Rc8 {[%clk 0:01:17.1]} 24. Red1 {[%clk 0:02:31.7]}
24... Kg7 {[%clk 0:01:16.5]} 25. c4 {[%clk 0:02:26.9]} 25... g5 {[%clk
0:01:15.2]} 26. Kc2 {[%clk 0:02:22.4]} 26... gxf4 {[%clk 0:01:14.4]} 27. gxf4
{[%clk 0:02:23.3]} 27... Be3 {[%clk 0:01:13.3]} 28. Rf1 {[%clk 0:02:23.4]} 28...
c5 {[%clk 0:01:09.9]} 29. Rf3 {[%clk 0:02:21.1]} 29... Bd4 {[%clk 0:01:03.4]}
30. b4 {[%clk 0:02:21]} 30... Rb8 {[%clk 0:00:53]} 31. b5 {[%clk 0:02:17]} 31...
Rb7 {[%clk 0:00:44.9]} 32. Ra3 {[%clk 0:02:10.4]} 32... Kg6 {[%clk 0:00:43.7]}
33. Rda6 {[%clk 0:02:04.7]} 33... Kf5 {[%clk 0:00:38.1]} 34. Rxa7 {[%clk
0:02:04.7]} 34... Rxa7 {[%clk 0:00:37.7]} 35. Rxa7 {[%clk 0:02:04.8]} 35... Kxf4
{[%clk 0:00:38.2]} 36. Rxf7+ {[%clk 0:01:59.2]} 36... Kxe5 {[%clk 0:00:36.2]}
37. b6 {[%clk 0:01:59.6]} 37... Ke4 {[%clk 0:00:29]} 38. b7 {[%clk 0:01:59.5]}
38... Be5 {[%clk 0:00:29.4]} 39. Rf8 {[%clk 0:01:59.9]} 1-0

[Event "Late-Titled-Tuesday-Blitz-April-30-2024"]
[Site "Chess.com"]
[Date "2024.04.30"]
[Round "9"]
[White "shirovin"]
[Black "mjelcic"]
[Result "0-1"]
[WhiteElo "2082"]
[BlackElo "2331"]
[TimeControl "180+1"]
[EndTime "15:42:12 PDT"]
[Termination "mjelcic won on time"]

1. e4 {[%clk 0:03:00.9]} 1... g6 {[%clk 0:02:59.7]} 2. d4 {[%clk 0:02:59]} 2...
Bg7 {[%clk 0:02:59.6]} 3. Nc3 {[%clk 0:02:59.6]} 3... d6 {[%clk 0:02:59.6]} 4.
Nf3 {[%clk 0:02:58.8]} 4... Nf6 {[%clk 0:02:59.4]} 5. Be2 {[%clk 0:02:59.1]}
5... O-O {[%clk 0:02:59.4]} 6. O-O {[%clk 0:02:59.6]} 6... Nbd7 {[%clk
0:02:59.7]} 7. h3 {[%clk 0:02:39.2]} 7... e5 {[%clk 0:02:58.9]} 8. Be3 {[%clk
0:02:39.7]} 8... c6 {[%clk 0:02:58.5]} 9. Qd2 {[%clk 0:02:38.6]} 9... Re8 {[%clk
0:02:57.2]} 10. dxe5 {[%clk 0:02:34.4]} 10... dxe5 {[%clk 0:02:56.2]} 11. Rad1
{[%clk 0:02:21.3]} 11... Qc7 {[%clk 0:02:55]} 12. Qd6 {[%clk 0:02:14.5]} 12...
Qxd6 {[%clk 0:02:53.1]} 13. Rxd6 {[%clk 0:02:13.4]} 13... Bf8 {[%clk 0:02:54]}
14. Rdd1 {[%clk 0:02:08]} 14... Bb4 {[%clk 0:02:52.4]} 15. a3 {[%clk 0:02:06.4]}
15... Bxc3 {[%clk 0:02:52]} 16. bxc3 {[%clk 0:02:06.2]} 16... Nxe4 {[%clk
0:02:51.9]} 17. Rd3 {[%clk 0:01:57.1]} 17... Ndc5 {[%clk 0:02:46.4]} 18. Rdd1
{[%clk 0:01:49.4]} 18... Ne6 {[%clk 0:02:41.9]} 19. Nxe5 {[%clk 0:01:28.4]}
19... Nxc3 {[%clk 0:02:39.2]} 20. Rd2 {[%clk 0:01:28.1]} 20... Nc7 {[%clk
0:02:34.5]} 21. Ng4 {[%clk 0:01:20.8]} 21... N7d5 {[%clk 0:02:25.2]} 22. Bc4
{[%clk 0:00:51.2]} 22... Bxg4 {[%clk 0:02:21]} 23. hxg4 {[%clk 0:00:49.3]} 23...
Nxe3 {[%clk 0:02:20.4]} 24. fxe3 {[%clk 0:00:49]} 24... Re7 {[%clk 0:02:14.1]}
25. Rd3 {[%clk 0:00:39.4]} 25... Ne4 {[%clk 0:02:09]} 26. a4 {[%clk 0:00:30.1]}
26... a5 {[%clk 0:02:02.8]} 27. Rf4 {[%clk 0:00:19.8]} 27... Nc5 {[%clk
0:02:01.5]} 28. Rd6 {[%clk 0:00:16.6]} 28... Kg7 {[%clk 0:01:55]} 29. Rdf6
{[%clk 0:00:14.4]} 29... Rf8 {[%clk 0:01:54.5]} 30. g5 {[%clk 0:00:13.9]} 30...
Ne4 {[%clk 0:01:50.6]} 0-1

[Event "Late-Titled-Tuesday-Blitz-April-30-2024"]
[Site "Chess.com"]
[Date "2024.04.30"]
[Round "9"]
[White "ahmedkandiliii"]
[Black "DeTimmerman"]
[Result "0-1"]
[WhiteElo "2612"]
[BlackElo "2791"]
[TimeControl "180+1"]
[EndTime "15:42:13 PDT"]
[Termination "DeTimmerman won by checkmate"]

1. e4 {[%clk 0:03:00]} 1... e5 {[%clk 0:02:59.2]} 2. Nf3 {[%clk 0:02:59.4]} 2...
Nc6 {[%clk 0:02:57.3]} 3. Bb5 {[%clk 0:02:59.5]} 3... f5 {[%clk 0:02:57]} 4. d4
{[%clk 0:02:55.1]} 4... fxe4 {[%clk 0:02:56.9]} 5. Bxc6 {[%clk 0:02:55.2]} 5...
dxc6 {[%clk 0:02:57]} 6. Nxe5 {[%clk 0:02:55.1]} 6... Nf6 {[%clk 0:02:57.2]} 7.
O-O {[%clk 0:02:55.1]} 7... Bd6 {[%clk 0:02:54.5]} 8. Nc3 {[%clk 0:02:53.1]}
8... Qe7 {[%clk 0:02:52.4]} 9. Re1 {[%clk 0:02:44.5]} 9... Bxe5 {[%clk
0:02:35.6]} 10. dxe5 {[%clk 0:02:45.4]} 10... Qxe5 {[%clk 0:02:36.4]} 11. Nxe4
{[%clk 0:02:33.5]} 11... Nxe4 {[%clk 0:02:37.3]} 12. f3 {[%clk 0:02:33.6]} 12...
Bf5 {[%clk 0:02:36.9]} 13. fxe4 {[%clk 0:02:28.9]} 13... Bg6 {[%clk 0:02:37.3]}
14. Be3 {[%clk 0:02:00.1]} 14... O-O {[%clk 0:02:33.1]} 15. Bd4 {[%clk 0:01:59]}
15... Qe6 {[%clk 0:02:32.2]} 16. e5 {[%clk 0:01:47.9]} 16... Rad8 {[%clk
0:02:24.7]} 17. b4 {[%clk 0:01:27.5]} 17... b6 {[%clk 0:02:25.3]} 18. c3 {[%clk
0:00:19.7]} 18... c5 {[%clk 0:02:25.2]} 19. bxc5 {[%clk 0:00:20.4]} 19... bxc5
{[%clk 0:02:25.9]} 20. Bxc5 {[%clk 0:00:17.9]} 20... Rxd1 {[%clk 0:02:24.5]} 21.
Raxd1 {[%clk 0:00:18.8]} 21... Re8 {[%clk 0:02:21.1]} 22. Bxa7 {[%clk
0:00:18.6]} 22... Qxa2 {[%clk 0:02:20.5]} 23. Bd4 {[%clk 0:00:17.2]} 23... Bf7
{[%clk 0:02:13.7]} 24. Rd3 {[%clk 0:00:14.1]} 24... c5 {[%clk 0:02:05.2]} 25.
Bf2 {[%clk 0:00:07.6]} 25... Qc4 {[%clk 0:02:04.9]} 26. Rg3 {[%clk 0:00:07.4]}
26... Qd5 {[%clk 0:01:53.8]} 27. Rge3 {[%clk 0:00:06.4]} 27... Be6 {[%clk
0:01:47.2]} 28. Rg3 {[%clk 0:00:06.4]} 28... Bc8 {[%clk 0:01:44.8]} 29. Rge3
{[%clk 0:00:06.5]} 29... Bb7 {[%clk 0:01:45]} 30. Bg3 {[%clk 0:00:06.7]} 30...
Qxg2# {[%clk 0:01:43.3]} 0-1

[Event "Late-Titled-Tuesday-Blitz-April-30-2024"]
[Site "Chess.com"]
[Date "2024.04.30"]
[Round "9"]
[White "mbojan"]
[Black "Jakhongir-Vakhidov"]
[Result "0-1"]
[WhiteElo "2931"]
[BlackElo "2772"]
[TimeControl "180+1"]
[EndTime "15:42:39 PDT"]
[Termination "Jakhongir-Vakhidov won by resignation"]

1. a3 {[%clk 0:03:00.9]} 1... g6 {[%clk 0:02:59.8]} 2. g3 {[%clk 0:03:00.8]}
2... Bg7 {[%clk 0:03:00.2]} 3. Bg2 {[%clk 0:03:01.6]} 3... c5 {[%clk 0:03:00.7]}
4. d3 {[%clk 0:03:01.7]} 4... Nc6 {[%clk 0:03:00.8]} 5. Nc3 {[%clk 0:03:01.3]}
5... e6 {[%clk 0:02:59.9]} 6. Bd2 {[%clk 0:03:00]} 6... d5 {[%clk 0:02:59.6]} 7.
Qc1 {[%clk 0:03:00.1]} 7... h6 {[%clk 0:02:57.9]} 8. Nf3 {[%clk 0:03:00]} 8...
Nge7 {[%clk 0:02:57.5]} 9. O-O {[%clk 0:03:00.2]} 9... b6 {[%clk 0:02:51]} 10.
Rb1 {[%clk 0:03:00.3]} 10... a5 {[%clk 0:02:50.6]} 11. a4 {[%clk 0:02:56.3]}
11... Bb7 {[%clk 0:02:48.1]} 12. Nb5 {[%clk 0:02:56.3]} 12... Qd7 {[%clk
0:02:45.8]} 13. c3 {[%clk 0:02:42.9]} 13... g5 {[%clk 0:02:38.3]} 14. Re1 {[%clk
0:02:42.3]} 14... O-O {[%clk 0:02:31.2]} 15. h4 {[%clk 0:02:37.9]} 15... f6
{[%clk 0:02:24.1]} 16. e4 {[%clk 0:02:33.4]} 16... dxe4 {[%clk 0:02:22.3]} 17.
dxe4 {[%clk 0:02:33.2]} 17... Ng6 {[%clk 0:02:14.8]} 18. Qc2 {[%clk 0:01:59.5]}
18... gxh4 {[%clk 0:02:00.6]} 19. Rbd1 {[%clk 0:01:51.6]} 19... Qe7 {[%clk
0:01:52]} 20. gxh4 {[%clk 0:01:20.8]} 20... Nce5 {[%clk 0:01:49.7]} 21. h5
{[%clk 0:01:02.6]} 21... Nxf3+ {[%clk 0:01:49.5]} 22. Bxf3 {[%clk 0:01:03.5]}
22... Ne5 {[%clk 0:01:50.1]} 23. Be2 {[%clk 0:01:04.1]} 23... f5 {[%clk
0:01:48.3]} 24. exf5 {[%clk 0:00:53.5]} 24... Qh4 {[%clk 0:01:45.6]} 25. f3
{[%clk 0:00:46.8]} 25... Qg3+ {[%clk 0:01:19.2]} 26. Kf1 {[%clk 0:00:46.5]}
26... Rxf5 {[%clk 0:01:18.6]} 27. Be3 {[%clk 0:00:26.4]} 27... Bxf3 {[%clk
0:01:02.8]} 28. Bxf3 {[%clk 0:00:23.2]} 28... Nxf3 {[%clk 0:01:02.1]} 29. Bf2
{[%clk 0:00:20.4]} 29... Nh2+ {[%clk 0:01:00.5]} 0-1

[Event "Late-Titled-Tuesday-Blitz-April-30-2024"]
[Site "Chess.com"]
[Date "2024.04.30"]
[Round "9"]
[White "Chessmatus"]
[Black "MNyuyu"]
[Result "0-1"]
[WhiteElo "2561"]
[BlackElo "2406"]
[TimeControl "180+1"]
[EndTime "15:42:43 PDT"]
[Termination "MNyuyu won by resignation"]

1. e4 {[%clk 0:03:00.9]} 1... d5 {[%clk 0:02:59.9]} 2. exd5 {[%clk 0:02:59]}
2... Qxd5 {[%clk 0:03:00.8]} 3. Nc3 {[%clk 0:02:58.5]} 3... Qd8 {[%clk
0:03:01.2]} 4. d4 {[%clk 0:02:57.2]} 4... c6 {[%clk 0:03:01.5]} 5. Nf3 {[%clk
0:02:56]} 5... Bg4 {[%clk 0:03:00.6]} 6. Bc4 {[%clk 0:02:55]} 6... e6 {[%clk
0:03:01]} 7. Be3 {[%clk 0:02:48.1]} 7... Nf6 {[%clk 0:02:58.8]} 8. h3 {[%clk
0:02:45.9]} 8... Bxf3 {[%clk 0:02:55.3]} 9. Qxf3 {[%clk 0:02:46.8]} 9... Bb4
{[%clk 0:02:53.9]} 10. O-O {[%clk 0:02:43.5]} 10... O-O {[%clk 0:02:52.9]} 11.
Bg5 {[%clk 0:02:26.4]} 11... Be7 {[%clk 0:02:51.5]} 12. Rad1 {[%clk 0:02:16.5]}
12... Nbd7 {[%clk 0:02:51.7]} 13. Rfe1 {[%clk 0:02:08.3]} 13... Re8 {[%clk
0:02:47]} 14. Bd3 {[%clk 0:01:58.2]} 14... Nd5 {[%clk 0:02:38.6]} 15. Bc1 {[%clk
0:01:48.6]} 15... Nxc3 {[%clk 0:02:32.4]} 16. bxc3 {[%clk 0:01:49.5]} 16... Nf8
{[%clk 0:02:32.3]} 17. c4 {[%clk 0:01:46.3]} 17... Qa5 {[%clk 0:02:27.9]} 18. a3
{[%clk 0:01:37.8]} 18... Rad8 {[%clk 0:02:26.5]} 19. Bb2 {[%clk 0:01:32.8]}
19... Bf6 {[%clk 0:02:16.1]} 20. Be4 {[%clk 0:01:22.9]} 20... Bxd4 {[%clk
0:02:05.9]} 21. Bxd4 {[%clk 0:01:03.7]} 21... Rxd4 {[%clk 0:02:05]} 22. Rxd4
{[%clk 0:01:03.9]} 22... Qxe1+ {[%clk 0:02:03.9]} 23. Kh2 {[%clk 0:01:04.3]}
23... Qa1 {[%clk 0:02:00.6]} 24. Qd3 {[%clk 0:00:44.9]} 24... Qe1 {[%clk
0:01:46.3]} 25. Qf3 {[%clk 0:00:23.8]} 25... Qa5 {[%clk 0:01:44.3]} 26. Qd3
{[%clk 0:00:20.4]} 26... f5 {[%clk 0:01:28.5]} 27. Bf3 {[%clk 0:00:16.7]} 27...
e5 {[%clk 0:01:26.9]} 28. Qxf5 {[%clk 0:00:02.3]} 28... g6 {[%clk 0:01:16.5]}
29. Qh5 {[%clk 0:00:01.9]} 29... gxh5 {[%clk 0:01:15.6]} 0-1

[Event "Late-Titled-Tuesday-Blitz-April-30-2024"]
[Site "Chess.com"]
[Date "2024.04.30"]
[Round "9"]
[White "Byniolus"]
[Black "Bryanl106"]
[Result "1-0"]
[WhiteElo "2848"]
[BlackElo "2686"]
[TimeControl "180+1"]
[EndTime "15:43:01 PDT"]
[Termination "Byniolus won by checkmate"]

1. d4 {[%clk 0:03:00.9]} 1... Nf6 {[%clk 0:02:58.1]} 2. Nf3 {[%clk 0:03:01.2]}
2... g6 {[%clk 0:02:58.5]} 3. Bf4 {[%clk 0:03:01.2]} 3... Bg7 {[%clk 0:02:57.7]}
4. e3 {[%clk 0:03:01.6]} 4... O-O {[%clk 0:02:58.1]} 5. Be2 {[%clk 0:03:01.6]}
5... d5 {[%clk 0:02:55]} 6. O-O {[%clk 0:03:00.9]} 6... c5 {[%clk 0:02:54.1]} 7.
c3 {[%clk 0:03:01.3]} 7... Nbd7 {[%clk 0:02:52.6]} 8. Nbd2 {[%clk 0:03:00.4]}
8... b6 {[%clk 0:02:52.9]} 9. h3 {[%clk 0:02:59]} 9... Bb7 {[%clk 0:02:52.4]}
10. a4 {[%clk 0:02:58.6]} 10... a6 {[%clk 0:02:52.4]} 11. Re1 {[%clk 0:02:57]}
11... Ne4 {[%clk 0:02:51.5]} 12. Bh2 {[%clk 0:02:55.2]} 12... Re8 {[%clk
0:02:43.2]} 13. Nxe4 {[%clk 0:02:48]} 13... dxe4 {[%clk 0:02:44.1]} 14. Nd2
{[%clk 0:02:48.5]} 14... cxd4 {[%clk 0:02:43.5]} 15. exd4 {[%clk 0:02:42.2]}
15... e5 {[%clk 0:02:43.6]} 16. Nc4 {[%clk 0:02:29.2]} 16... Qc7 {[%clk
0:02:24.5]} 17. dxe5 {[%clk 0:02:21.6]} 17... Nxe5 {[%clk 0:02:25.4]} 18. Qd6
{[%clk 0:02:20.1]} 18... Qxd6 {[%clk 0:02:21.5]} 19. Nxd6 {[%clk 0:02:20.4]}
19... Re7 {[%clk 0:02:22.1]} 20. Nxb7 {[%clk 0:02:04.3]} 20... Rxb7 {[%clk
0:02:23]} 21. Bf1 {[%clk 0:01:58.8]} 21... f5 {[%clk 0:02:22.9]} 22. Red1 {[%clk
0:01:36.1]} 22... Bf6 {[%clk 0:01:50.9]} 23. Rd6 {[%clk 0:01:28.6]} 23... Kg7
{[%clk 0:01:50.7]} 24. Rad1 {[%clk 0:01:28.8]} 24... b5 {[%clk 0:01:45.4]} 25.
axb5 {[%clk 0:01:25.7]} 25... axb5 {[%clk 0:01:46.3]} 26. Rxf6 {[%clk
0:01:25.9]} 26... Nf3+ {[%clk 0:01:40.2]} 27. gxf3 {[%clk 0:01:24.9]} 27... Kxf6
{[%clk 0:01:41.1]} 28. fxe4 {[%clk 0:01:20.5]} 28... fxe4 {[%clk 0:01:42]} 29.
b4 {[%clk 0:01:14.6]} 29... Rc8 {[%clk 0:01:38.9]} 30. Rc1 {[%clk 0:00:55]}
30... Kf5 {[%clk 0:01:36.3]} 31. Bd6 {[%clk 0:00:51.2]} 31... Ra8 {[%clk
0:01:34]} 32. Bc5 {[%clk 0:00:47.8]} 32... Ra3 {[%clk 0:01:33.1]} 33. Bd4 {[%clk
0:00:47.5]} 33... g5 {[%clk 0:01:29.9]} 34. Be2 {[%clk 0:00:43.4]} 34... Kg6
{[%clk 0:01:28.9]} 35. Re1 {[%clk 0:00:42]} 35... h5 {[%clk 0:01:24.9]} 36. Bf1
{[%clk 0:00:41.2]} 36... Kf5 {[%clk 0:01:24.8]} 37. Rxe4 {[%clk 0:00:30.1]}
37... Kxe4 {[%clk 0:01:20]} 38. Bg2+ {[%clk 0:00:29.3]} 38... Kd3 {[%clk
0:01:18.4]} 39. Bxb7 {[%clk 0:00:30.2]} 39... g4 {[%clk 0:01:18.4]} 40. hxg4
{[%clk 0:00:29.5]} 40... hxg4 {[%clk 0:01:19.3]} 41. Kg2 {[%clk 0:00:25.1]}
41... Rxc3 {[%clk 0:01:16.5]} 42. Bxc3 {[%clk 0:00:24.8]} 42... Kxc3 {[%clk
0:01:17.4]} 43. Kg3 {[%clk 0:00:24]} 43... Kxb4 {[%clk 0:01:18.3]} 44. Kxg4
{[%clk 0:00:24.3]} 44... Kc5 {[%clk 0:01:18.7]} 45. f4 {[%clk 0:00:22.3]} 45...
b4 {[%clk 0:01:19.6]} 46. Be4 {[%clk 0:00:21.9]} 46... b3 {[%clk 0:01:20.5]} 47.
Bb1 {[%clk 0:00:21.7]} 47... b2 {[%clk 0:01:21.4]} 48. f5 {[%clk 0:00:22.2]}
48... Kd6 {[%clk 0:01:22.1]} 49. Kg5 {[%clk 0:00:22.4]} 49... Ke7 {[%clk
0:01:23]} 50. Kg6 {[%clk 0:00:22.6]} 50... Kf8 {[%clk 0:01:23.9]} 51. Kf6 {[%clk
0:00:23.2]} 51... Kg8 {[%clk 0:01:24.4]} 52. Ke7 {[%clk 0:00:23.2]} 52... Kh8
{[%clk 0:01:25.3]} 53. f6 {[%clk 0:00:22.6]} 53... Kg8 {[%clk 0:01:25.7]} 54.
f7+ {[%clk 0:00:22.8]} 54... Kg7 {[%clk 0:01:25.6]} 55. f8=Q# {[%clk 0:00:23.3]}
1-0

[Event "Late-Titled-Tuesday-Blitz-April-30-2024"]
[Site "Chess.com"]
[Date "2024.04.30"]
[Round "9"]
[White "rikchessmx"]
[Black "burritus"]
[Result "1-0"]
[WhiteElo "2288"]
[BlackElo "2413"]
[TimeControl "180+1"]
[EndTime "15:43:02 PDT"]
[Termination "rikchessmx won on time"]

1. e4 {[%clk 0:03:00.9]} 1... e5 {[%clk 0:02:54.2]} 2. Nf3 {[%clk 0:02:58.5]}
2... Nc6 {[%clk 0:02:54.4]} 3. Bb5 {[%clk 0:02:59]} 3... Nf6 {[%clk 0:02:53.3]}
4. O-O {[%clk 0:02:59]} 4... Nxe4 {[%clk 0:02:53.2]} 5. d4 {[%clk 0:02:58.7]}
5... Nd6 {[%clk 0:02:50.3]} 6. dxe5 {[%clk 0:02:57.3]} 6... Nxb5 {[%clk
0:02:47.1]} 7. a4 {[%clk 0:02:56.9]} 7... Nbd4 {[%clk 0:02:39.9]} 8. Nxd4 {[%clk
0:02:56.3]} 8... Nxd4 {[%clk 0:02:35.6]} 9. Qxd4 {[%clk 0:02:56]} 9... d6 {[%clk
0:02:35]} 10. Nc3 {[%clk 0:02:55.1]} 10... Be6 {[%clk 0:02:23.7]} 11. Bf4 {[%clk
0:02:50.1]} 11... Qh4 {[%clk 0:02:01.7]} 12. exd6 {[%clk 0:02:23.5]} 12... Bxd6
{[%clk 0:01:59]} 13. Qxg7 {[%clk 0:02:22.5]} 13... Qxf4 {[%clk 0:01:10.6]} 14.
Qxh8+ {[%clk 0:02:21]} 14... Kd7 {[%clk 0:01:10.7]} 15. g3 {[%clk 0:02:21.4]}
15... Qf3 {[%clk 0:01:10.7]} 16. Qxh7 {[%clk 0:02:18.5]} 16... Re8 {[%clk
0:00:12.8]} 17. Rad1 {[%clk 0:02:09.6]} 17... Kc8 {[%clk 0:00:12.5]} 18. Rd3
{[%clk 0:01:59.4]} 18... Qc6 {[%clk 0:00:07.8]} 19. Re1 {[%clk 0:01:48.1]} 19...
a6 {[%clk 0:00:05.2]} 20. Qe4 {[%clk 0:01:43.5]} 20... Qb6 {[%clk 0:00:04.3]}
21. Nd5 {[%clk 0:01:20.4]} 21... Qxb2 {[%clk 0:00:03.5]} 22. Rb3 {[%clk
0:01:06.1]} 22... Qa2 {[%clk 0:00:03.3]} 23. Nxc7 {[%clk 0:01:02.7]} 23... Bxc7
{[%clk 0:00:01.5]} 24. Qxb7+ {[%clk 0:01:02.2]} 24... Kd8 {[%clk 0:00:00.4]} 25.
Rd1+ {[%clk 0:01:02]} 25... Ke7 {[%clk 0:00:00.9]} 26. Qxc7+ {[%clk 0:01:02]}
26... Kf8 {[%clk 0:00:01.6]} 27. Qc5+ {[%clk 0:00:58.8]} 27... Kg8 {[%clk
0:00:01.1]} 28. Rbd3 {[%clk 0:00:54.6]} 1-0

[Event "Late-Titled-Tuesday-Blitz-April-30-2024"]
[Site "Chess.com"]
[Date "2024.04.30"]
[Round "9"]
[White "rhwr"]
[Black "toninhojit"]
[Result "1-0"]
[WhiteElo "2285"]
[BlackElo "2537"]
[TimeControl "180+1"]
[EndTime "15:43:05 PDT"]
[Termination "rhwr won by checkmate"]

1. e4 {[%clk 0:03:00.9]} 1... c5 {[%clk 0:01:24.2]} 2. Be2 {[%clk 0:02:59.2]}
2... Nc6 {[%clk 0:01:23.7]} 3. f4 {[%clk 0:02:59.3]} 3... g6 {[%clk 0:01:24.3]}
4. Nf3 {[%clk 0:02:59.4]} 4... Bg7 {[%clk 0:01:24.8]} 5. O-O {[%clk 0:02:59.4]}
5... d6 {[%clk 0:01:25.3]} 6. c3 {[%clk 0:02:59.9]} 6... e6 {[%clk 0:01:25.9]}
7. d3 {[%clk 0:02:56.7]} 7... Nge7 {[%clk 0:01:25.7]} 8. Be3 {[%clk 0:02:55.9]}
8... O-O {[%clk 0:01:26.3]} 9. Nbd2 {[%clk 0:02:54.6]} 9... f5 {[%clk
0:01:26.6]} 10. Qc2 {[%clk 0:02:50.1]} 10... Rb8 {[%clk 0:01:26.4]} 11. Rae1
{[%clk 0:02:47.1]} 11... b5 {[%clk 0:01:26.5]} 12. Bf2 {[%clk 0:02:45.7]} 12...
b4 {[%clk 0:01:26.9]} 13. Nc4 {[%clk 0:02:41.7]} 13... Ba6 {[%clk 0:01:24.3]}
14. exf5 {[%clk 0:02:20.6]} 14... exf5 {[%clk 0:01:15.4]} 15. d4 {[%clk
0:02:14.5]} 15... bxc3 {[%clk 0:00:58.1]} 16. bxc3 {[%clk 0:02:09.6]} 16... Bxc4
{[%clk 0:00:54.9]} 17. Bxc4+ {[%clk 0:02:07.6]} 17... d5 {[%clk 0:00:55.8]} 18.
Be2 {[%clk 0:01:53.3]} 18... c4 {[%clk 0:00:55.8]} 19. Ne5 {[%clk 0:01:52.8]}
19... Nxe5 {[%clk 0:00:55.7]} 20. dxe5 {[%clk 0:01:51.2]} 20... Qa5 {[%clk
0:00:56]} 21. Bf3 {[%clk 0:01:47.9]} 21... Qa3 {[%clk 0:00:53.6]} 22. Re2 {[%clk
0:01:46.7]} 22... Rb5 {[%clk 0:00:48.8]} 23. Rd1 {[%clk 0:01:45.3]} 23... Rfb8
{[%clk 0:00:48.9]} 24. Qd2 {[%clk 0:01:42.5]} 24... Rb2 {[%clk 0:00:48]} 25.
Bxd5+ {[%clk 0:01:37]} 25... Kh8 {[%clk 0:00:45.8]} 26. Qd4 {[%clk 0:01:36]}
26... Rxe2 {[%clk 0:00:41.4]} 27. Bxc4 {[%clk 0:01:29]} 27... Reb2 {[%clk
0:00:23]} 28. Qd8+ {[%clk 0:01:07]} 28... Rxd8 {[%clk 0:00:22.2]} 29. Rxd8+
{[%clk 0:01:07.5]} 29... Bf8 {[%clk 0:00:22.4]} 30. Rxf8+ {[%clk 0:01:07.7]}
30... Kg7 {[%clk 0:00:23]} 31. Rf7+ {[%clk 0:01:06.9]} 31... Kh6 {[%clk
0:00:22.4]} 32. Bh4 {[%clk 0:01:01.8]} 32... Rb1+ {[%clk 0:00:15.9]} 33. Bf1
{[%clk 0:00:59.3]} 33... Rxf1+ {[%clk 0:00:14.9]} 34. Kxf1 {[%clk 0:00:59.1]}
34... Nd5 {[%clk 0:00:13.1]} 35. Bg5+ {[%clk 0:00:56.3]} 35... Kh5 {[%clk
0:00:13.2]} 36. Rxh7+ {[%clk 0:00:54.8]} 36... Kg4 {[%clk 0:00:13.7]} 37. Rh4#
{[%clk 0:00:55.2]} 1-0